bitfinex/quotes_ETHUSD_20250508
["timestamp","ask_amount","ask_price","bid_price","bid_amount"]
[1746713246925,5.05561172,1978.0,1977.9,5.78939383]
[1746713247131,5.05561172,1978.0,1977.9,8.78939383]
[1746713247648,5.83383236,1978.4,1977.9,9.66833321]
[1746713247649,5.05512571,1978.2,1977.9,9.66833321]
[1746713247944,5.805,1978.5,1978.0,3.0]
[1746713248130,5.05561172,1978.0,1977.9,5.78939383]
[1746713248451,5.805,1978.5,1977.9,8.78939383]
[1746713248647,5.0552087,1978.2,1977.9,8.78939383]
[1746713248853,5.805,1978.5,1978.1,0.7916]
[1746713249151,5.05356781,1978.8,1978.3,8.05468301]
[1746713249334,5.05385843,1978.7,1978.6,5.78939383]
[1746713250113,5.05345971,1978.9,1978.7,3.0]
[1746713250424,5.05356781,1978.8,1978.7,3.0]
[1746713251335,5.05452132,1978.5,1978.4,3.0]
[1746713252262,5.05383983,1978.7,1978.1,0.7916]
[1746713252263,5.05504102,1978.3,1978.1,3.7916]
[1746713252463,5.05449619,1978.5,1978.1,9.80495815]
[1746713252614,0.7889,1979.0,1978.4,5.78939383]
[1746713252818,5.05385049,1978.7,1978.4,5.78939383]
[1746713253019,5.05369992,1978.8,1978.5,3.0]
[1746713253351,5.05361005,1978.8,1978.5,3.0]
[1746713253518,5.0539831,1978.7,1978.5,3.0]
[1746713253851,5.0536981,1978.8,1978.5,3.87893938]
[1746713254056,24.008,1979.1,1978.8,3.0]
[1746713254260,5.806,1979.1,1978.8,3.0]
[1746713254456,10.12,1979.7,1979.1,0.7782]
[1746713254643,5.05157159,1979.6,1979.5,5.78939383]
[1746713254854,10.12,1980.0,1979.5,8.78939383]
[1746713255052,10.12,1980.0,1979.8,5.78939383]
[1746713255053,5.05050505,1980.0,1979.8,5.78939383]
[1746713255228,5.05076013,1979.9,1979.8,5.78939383]
[1746713255429,5.05152556,1979.6,1979.5,8.78939383]
[1746713255641,5.05127039,1979.7,1979.6,3.0]
[1746713256865,5.05087006,1979.9,1979.6,3.0]
[1746713257164,5.05002703,1980.2,1979.6,3.0]
[1746713257165,5.05046607,1980.1,1979.8,5.78939383]
[1746713257532,5.05060647,1980.0,1979.8,5.78939383]
[1746713257733,5.05046607,1980.1,1979.9,3.0]
[1746713258361,10.85514658,1980.2,1979.9,3.0]
[1746713258580,10.85514658,1980.2,1980.1,5.78939383]
[1746713258932,5.0502727,1980.1,1979.9,3.0]
[1746713259269,5.05050505,1980.0,1979.9,3.0]
[1746713259467,5.05041539,1980.1,1979.9,3.0]
[1746713259635,5.05050505,1980.0,1979.9,3.0]
[1746713259833,18.9823,1980.7,1979.9,3.0]
[1746713260041,5.04990461,1980.3,1979.9,3.99845195]
[1746713260234,5.0500432,1980.2,1979.9,3.99845195]
[1746713260568,5.05050505,1980.0,1979.9,3.11951257]
[1746713260768,5.05042159,1980.1,1979.9,3.11951257]
[1746713261657,5.05050505,1980.0,1979.9,3.11951257]
[1746713262061,5.05050505,1980.0,1979.9,0.11951257]
[1746713262374,5.05115448,1979.8,1979.5,6.58439383]
[1746713262577,5.05096477,1979.9,1979.6,3.12118633]
[1746713262880,5.05127039,1979.7,1979.6,3.12118633]
[1746713263075,5.05117904,1979.8,1979.6,3.12118633]
[1746713263390,5.05127039,1979.7,1979.6,0.12118633]
[1746713265143,5.81157039,1979.7,1979.6,0.12118633]
[1746713265470,5.05229121,1979.3,1979.2,5.78939383]
[1746713265669,5.05331244,1978.9,1978.5,0.82735109]
[1746713265866,5.05280177,1979.1,1978.2,5.78939383]
[1746713266096,5.05280177,1979.1,1978.3,3.57893938]
[1746713266244,5.05458956,1978.4,1978.3,3.0]
[1746713266442,5.05396758,1978.7,1978.3,3.0]
[1746713266642,5.05382321,1978.7,1978.5,5.78939383]
[1746713266846,10.87167743,1978.8,1978.5,5.78939383]
[1746713267088,5.05342217,1978.9,1978.6,3.0]
[1746713267244,5.819,1979.4,1978.8,5.78939383]
[1746713267447,5.05320631,1979.0,1978.8,5.78939383]
[1746713267778,5.05331244,1978.9,1978.8,5.78939383]
[1746713268286,5.05320631,1979.0,1978.8,5.78939383]
[1746713268486,5.819,1979.4,1978.9,3.0]
[1746713268652,5.819,1979.4,1979.1,5.78939383]
[1746713268653,5.05229121,1979.3,1979.1,5.78939383]
[1746713269078,5.819,1979.4,1979.2,3.0]
[1746713269279,10.87118383,1979.4,1979.2,3.0]
[1746713269701,15.92344447,1979.4,1979.2,3.0]
[1746713269911,5.05229121,1979.3,1979.2,3.0]
[1746713270910,5.05277194,1979.2,1978.9,3.7804]
[1746713271115,5.819,1979.4,1978.9,3.0]
[1746713271116,5.05305709,1979.0,1978.9,3.0]
[1746713271276,5.05331908,1978.9,1978.6,0.7854]
[1746713271485,5.05293872,1979.1,1978.8,5.78939383]
[1746713271683,5.05331244,1978.9,1978.8,8.78939383]
[1746713271896,5.05254648,1979.2,1978.6,0.7854]
[1746713272097,5.05359957,1978.8,1978.6,0.7854]
[1746713272296,5.05346909,1978.9,1978.6,0.7854]
[1746713272497,5.05331244,1978.9,1978.8,5.78939383]
[1746713272687,5.05298063,1979.1,1978.8,8.78939383]
[1746713272889,5.05318523,1979.0,1978.8,8.78939383]
[1746713273436,5.819,1979.4,1978.8,8.78939383]
[1746713273585,5.819,1979.4,1978.9,3.0]
[1746713273927,5.05238251,1979.3,1978.9,4.17893938]
[1746713274121,5.05267765,1979.2,1978.9,4.17893938]
[1746713274623,5.0524029,1979.3,1978.9,4.17893938]
[1746713274922,5.0524029,1979.3,1978.9,9.23216583]
[1746713275218,5.0524029,1979.3,1979.0,0.11354675]
[1746713275524,5.05255352,1979.2,1979.0,0.11354675]
[1746713275724,0.7941,1979.9,1979.1,6.60039383]
[1746713275930,5.05221389,1979.4,1979.2,3.0]
[1746713276091,5.05221389,1979.4,1979.2,3.11290306]
[1746713276488,5.05229121,1979.3,1979.2,3.11290306]
[1746713276693,5.05229121,1979.3,1979.2,0.11290306]
[1746713277034,5.05209263,1979.4,1978.9,4.98993938]
[1746713277035,5.05299691,1979.1,1978.9,3.0]
[1746713277622,5.05291633,1979.1,1978.9,3.0]
[1746713278334,5.05300634,1979.1,1978.9,3.0]
[1746713278892,5.819,1979.6,1978.9,3.0]
[1746713279120,5.05211675,1979.4,1979.1,5.78939383]
[1746713279651,5.05230305,1979.3,1979.1,5.78939383]
[1746713279797,10.87052932,1979.6,1979.1,5.78939383]
[1746713280004,5.05254648,1979.2,1979.1,8.78939383]
[1746713280207,5.05254648,1979.2,1979.1,3.0]
[1746713281225,5.05183725,1979.5,1978.9,3.0]
[1746713281422,5.05250977,1979.3,1978.9,3.0]
[1746713281641,5.05250977,1979.3,1978.9,8.0531602]
[1746713281861,5.05250977,1979.3,1978.9,9.94276054]
[1746713282059,5.05305709,1979.0,1978.9,3.0]
[1746713282334,5.05305709,1979.0,1978.7,1.1471281]
[1746713282335,5.05356781,1978.8,1978.7,0.3774281]
[1746713282535,5.05356781,1978.8,1978.6,3.0]
[1746713282744,5.05382321,1978.7,1978.6,3.0]
[1746713282939,0.7688,1978.7,1978.1,0.823]
[1746713283104,5.05462248,1978.4,1978.1,0.823]
[1746713283445,5.05547092,1978.1,1977.9,6.79739383]
[1746713283745,5.83910252,1978.2,1977.7,0.3764732]
[1746713284036,5.0559728,1977.9,1977.7,3.0]
[1746713284243,5.0559728,1977.9,1977.7,3.38643301]
[1746713284440,5.0566343,1977.6,1977.5,4.32539618]
[1746713284638,5.819,1978.1,1977.5,4.32539618]
[1746713284838,5.05632869,1977.8,1977.5,4.32539618]
[1746713285054,5.0566343,1977.6,1977.5,7.32539618]
[1746713285259,5.0566343,1977.6,1977.5,4.32539618]
[1746713286427,5.0566343,1977.6,1977.3,5.78939383]
[1746713286622,5.0566343,1977.6,1977.1,5.05781161]
[1746713286623,5.05719306,1977.4,1977.0,6.61109383]
[1746713286822,5.05708972,1977.5,1977.0,6.61109383]
[1746713287052,5.82,1977.6,1977.0,6.61109383]
[1746713287257,5.82,1977.6,1977.0,5.78939383]
[1746713287258,5.05770709,1977.2,1977.0,5.78939383]
[1746713287422,5.05756064,1977.3,1977.0,5.78939383]
[1746713287618,10.11519092,1977.3,1977.0,5.78939383]
[1746713287940,5.05775263,1977.2,1977.0,5.78939383]
[1746713288361,5.05775263,1977.2,1976.7,6.58609383]
[1746713288561,5.85286876,1977.5,1976.7,0.7967]
[1746713288562,5.0583799,1977.0,1976.7,0.7967]
[1746713288858,5.0583799,1977.0,1976.7,3.7967]
[1746713289237,10.11677476,1977.0,1976.7,3.7967]
[1746713289419,5.822,1977.7,1976.9,5.78939383]
[1746713289624,5.05712062,1977.5,1977.2,5.78939383]
[1746713289938,5.05717739,1977.4,1977.3,0.12609189]
[1746713290140,10.87849903,1977.7,1977.3,8.18331864]
[1746713290327,0.8054,1978.0,1977.6,3.0]
[1746713290328,5.05602984,1977.9,1977.6,3.0]
[1746713290659,5.05622992,1977.8,1977.7,0.12399397]
[1746713290833,5.05582359,1978.0,1977.7,0.12399397]
[1746713291540,5.05584393,1978.0,1977.7,0.12399397]
[1746713291740,5.05588548,1977.9,1977.7,0.12399397]
[1746713292258,5.0555136,1978.1,1977.8,5.78939383]
[1746713292474,5.05562513,1978.0,1977.8,5.78939383]
[1746713292765,5.05586733,1977.9,1977.8,5.78939383]
[1746713293071,5.822,1978.2,1977.6,3.0]
[1746713293072,5.05542913,1978.1,1977.6,3.0]
[1746713293244,5.05637862,1977.7,1977.6,3.0]
[1746713293442,5.05619674,1977.8,1977.6,3.0]
[1746713293741,10.87713709,1978.2,1977.6,3.0]
[1746713293943,5.05605385,1977.9,1977.6,3.0]
[1746713294760,5.05689001,1977.5,1977.4,0.785]
[1746713294968,5.05689001,1977.5,1977.3,5.78939383]
[1746713295175,5.05714574,1977.4,1977.3,3.0]
[1746713295343,5.05750132,1977.3,1977.1,0.785]
[1746713295546,5.05714574,1977.4,1977.0,5.78939383]
[1746713295547,5.05690694,1977.5,1977.0,5.78939383]
[1746713295774,5.0577011,1977.2,1976.7,6.16142855]
[1746713295971,5.05868069,1976.8,1976.7,5.78939383]
[1746713296142,5.05878239,1976.8,1976.6,0.7635]
[1746713296344,5.05978783,1976.4,1976.2,3.3488946]
[1746713296668,5.88536053,1976.3,1976.2,3.3488946]
[1746713297382,19.00536053,1976.3,1976.2,3.3488946]
[1746713297946,5.06021657,1976.2,1976.1,0.4374439]
[1746713298173,5.85005339,1975.6,1975.5,3.3488946]
[1746713298379,5.85005339,1975.6,1974.6,5.32356452]
[1746713298380,5.85059113,1975.0,1974.6,5.32356452]
[1746713298738,5.06329113,1975.0,1974.9,4.46409344]
[1746713301386,15.97039113,1975.0,1974.9,4.46409344]
[1746713301699,15.97039113,1975.0,1974.9,4.32539618]
[1746713301855,18.97039113,1975.0,1974.9,4.32539618]
[1746713302371,18.97039113,1975.0,1974.6,5.32356452]
[1746713302372,5.06436699,1974.6,1974.2,3.4374439]
[1746713302568,5.868,1974.6,1974.4,5.78939383]
[1746713302898,10.93243714,1974.6,1974.4,5.78939383]
[1746713303082,5.87,1974.8,1974.5,3.0]
[1746713303286,10.93394313,1974.8,1974.5,3.0]
[1746713303491,5.0645733,1974.5,1974.4,5.78939383]
[1746713303699,5.06448898,1974.6,1974.4,5.78939383]
[1746713303995,5.06448898,1974.6,1974.2,1.2392439]
[1746713304213,5.06410177,1974.7,1974.2,1.2392439]
[1746713304214,5.06420325,1974.7,1974.2,6.30457022]
[1746713304366,10.93389969,1974.8,1974.2,8.55185545]
[1746713304567,10.93395221,1974.8,1974.2,6.30438927]
[1746713304785,5.87,1974.8,1974.3,0.13671173]
[1746713304978,5.87,1974.8,1974.3,5.20169764]
[1746713305192,5.87,1974.8,1974.4,8.06482458]
[1746713305398,5.87,1974.8,1974.5,13.30409176]
[1746713305694,5.87,1975.3,1974.8,5.86610151]
[1746713306004,5.87,1975.3,1974.9,13.30090433]
[1746713306185,10.93256943,1975.3,1974.9,13.30090433]
[1746713306391,10.93262254,1975.3,1974.9,13.30095402]
[1746713306766,5.87,1975.3,1975.0,3.0]
[1746713307068,15.9954023,1975.3,1975.1,0.12141583]
[1746713307286,10.93262905,1975.3,1975.1,0.12141583]
[1746713307692,5.87,1975.3,1975.1,0.12141583]
[1746713308098,15.18126677,1975.8,1975.1,0.12141583]
[1746713308099,5.0621913,1975.5,1975.1,0.12141583]
[1746713308485,5.06188182,1975.6,1975.1,0.12141583]
[1746713308688,5.06254409,1975.3,1975.1,0.12141583]
[1746713308979,5.06264861,1975.3,1975.1,0.12141583]
[1746713309177,5.06272949,1975.3,1975.1,0.12141583]
[1746713309375,5.872,1975.7,1975.1,0.12141583]
[1746713309617,5.0619777,1975.6,1975.1,0.12141583]
[1746713309799,5.0619777,1975.6,1975.2,3.0]
[1746713309981,5.0619777,1975.6,1975.3,0.12036442]
[1746713310182,10.93358403,1975.7,1975.3,0.12036442]
[1746713310410,5.06176435,1975.6,1975.3,0.12036442]
[1746713310920,5.06107255,1975.9,1975.6,3.0]
[1746713311124,5.06056714,1976.1,1975.6,8.06173916]
[1746713311280,5.872,1976.2,1975.7,8.22216917]
[1746713311677,5.06124101,1975.8,1975.7,0.11826225]
[1746713312107,5.06160251,1975.7,1975.4,3.7963]
[1746713312307,5.06135131,1975.8,1975.4,3.7963]
[1746713312620,5.06178663,1975.6,1975.4,3.7963]
[1746713312995,5.06160005,1975.7,1975.4,3.7963]
[1746713313208,5.06137643,1975.8,1975.4,3.7963]
[1746713313408,5.06057235,1976.1,1975.7,8.10390692]
[1746713313610,18.232,1976.8,1975.7,8.10390692]
[1746713313611,5.05987602,1976.4,1976.0,5.06070826]
[1746713313918,5.872,1976.6,1976.1,16.16416117]
[1746713314123,5.872,1976.6,1976.3,8.05994125]
[1746713314297,5.05881334,1976.8,1976.5,8.10390692]
[1746713314617,10.93030427,1977.0,1976.6,8.05918054]
[1746713314829,5.05842924,1976.9,1976.6,3.0]
[1746713315120,10.93018471,1977.0,1976.6,8.05898822]
[1746713315527,5.872,1977.0,1976.6,8.05911605]
[1746713315823,10.93030183,1977.0,1976.6,4.6969023]
[1746713315986,5.872,1977.0,1976.7,5.05889424]
[1746713316184,5.05818184,1977.0,1976.6,4.6969023]
[1746713316409,5.05856335,1976.9,1976.6,4.6969023]
[1746713316620,5.05803854,1977.1,1976.6,9.75591424]
[1746713316984,5.05882514,1976.8,1976.6,3.0]
[1746713317184,6.6445,1977.4,1976.6,3.0]
[1746713317401,5.05893661,1976.7,1976.6,3.0]
[1746713317930,5.0574015,1977.3,1976.6,3.0]
[1746713318108,5.05889675,1976.8,1976.6,3.0]
[1746713318286,5.0574015,1977.3,1976.6,3.0]
[1746713318488,5.05893661,1976.7,1976.6,3.0]
[1746713319414,5.05878301,1976.8,1976.6,3.0]
[1746713319723,5.05882076,1976.8,1976.6,3.0]
[1746713320022,5.05882076,1976.8,1976.7,0.1100468]
[1746713320737,5.87,1976.9,1976.7,0.1100468]
[1746713321300,5.05799531,1977.1,1976.7,5.98643856]
[1746713321489,5.05799531,1977.1,1976.7,0.9275468]
[1746713321490,5.05842366,1977.0,1976.7,0.9275468]
[1746713321690,5.05838745,1977.0,1976.7,0.9275468]
[1746713321904,5.0585303,1976.9,1976.7,0.9275468]
[1746713322108,5.05780476,1977.2,1976.9,3.0]
[1746713322402,10.92735546,1977.4,1977.0,0.10847232]
[1746713322606,5.05649859,1977.7,1977.3,8.87630692]
[1746713322810,5.05714574,1977.4,1977.3,8.87630692]
[1746713323021,5.87,1977.9,1977.3,8.87630692]
[1746713323207,5.05647546,1977.7,1977.4,3.0]
[1746713323406,10.92599755,1977.9,1977.5,5.0567711]
[1746713323612,5.05637934,1977.7,1977.4,3.0]
[1746713323837,5.87,1977.9,1977.4,3.0]
[1746713324135,5.05600752,1977.9,1977.4,3.0]
[1746713324333,5.05689001,1977.5,1977.4,3.0]
[1746713324526,5.05675241,1977.6,1977.4,3.0]
[1746713324726,6.6204,1978.3,1977.4,3.0]
[1746713324926,5.05602664,1977.9,1977.4,8.05712776]
[1746713325127,5.05618194,1977.8,1977.4,9.75047123]
[1746713325335,5.05614766,1977.8,1977.4,9.75047123]
[1746713325646,5.05614766,1977.8,1977.4,5.08241346]
[1746713325828,5.05614766,1977.8,1977.7,5.79896587]
[1746713326138,5.05602664,1977.9,1977.5,3.0]
[1746713326139,5.05674557,1977.6,1977.5,3.0]
[1746713326511,5.05674557,1977.6,1977.4,5.79896587]
[1746713326939,5.05689001,1977.5,1977.4,5.79896587]
[1746713327604,5.05689001,1977.5,1977.0,0.8131]
[1746713327605,5.05765729,1977.2,1977.1,5.79896587]
[1746713327807,5.05765729,1977.2,1977.1,8.79896587]
[1746713328009,5.05765729,1977.2,1977.1,5.79896587]
[1746713328956,5.05765729,1977.2,1976.7,0.7636]
[1746713328957,5.0584248,1976.9,1976.8,5.79896587]
[1746713329254,5.05837067,1977.0,1976.8,5.79896587]
[1746713329556,5.0584248,1976.9,1976.8,8.79896587]
[1746713329755,5.0584248,1976.9,1976.8,3.0]
[1746713330080,5.05893661,1976.7,1976.6,5.79896587]
[1746713331343,5.05865968,1976.9,1976.6,8.79896587]
[1746713331551,5.05886005,1976.8,1976.6,8.79896587]
[1746713331772,5.05893661,1976.7,1976.6,8.79896587]
[1746713332410,5.05792404,1977.1,1976.6,8.79896587]
[1746713332645,0.8254,1977.2,1976.6,8.79896587]
[1746713332646,5.05893661,1976.7,1976.6,8.79896587]
[1746713333712,5.05893661,1976.7,1976.6,5.79896587]
[1746713334866,5.05893661,1976.7,1976.6,5.91738959]
[1746713335078,5.05893661,1976.7,1976.6,0.11842372]
[1746713335271,5.81683661,1976.7,1976.6,0.11842372]
[1746713335563,5.05970451,1976.4,1976.3,5.79896587]
[1746713336064,5.05970451,1976.4,1976.3,0.12031385]
[1746713336426,5.06047264,1976.1,1976.0,5.79896587]
[1746713336654,5.06047264,1976.1,1976.0,5.92117043]
[1746713340247,5.06037981,1976.2,1976.0,5.92117043]
[1746713341070,5.06047264,1976.1,1976.0,8.92117043]
[1746713341235,5.06047264,1976.1,1976.0,5.92117043]
[1746713341650,5.06040094,1976.2,1976.0,5.92117043]
[1746713341887,5.06047264,1976.1,1976.0,5.92117043]
[1746713342305,5.06047264,1976.1,1976.0,0.12220456]
[1746713342644,5.06124101,1975.8,1975.7,5.79896587]
[1746713342962,5.06124101,1975.8,1975.7,5.90597824]
[1746713343549,5.06124101,1975.8,1975.7,0.10701237]
[1746713344053,5.06175339,1975.6,1975.5,5.79896587]
[1746713344363,5.06072874,1976.0,1975.5,5.90702922]
[1746713344561,5.06175339,1975.6,1975.5,5.90702922]
[1746713344970,5.06175339,1975.6,1975.5,0.10806335]
[1746713345337,5.06252214,1975.3,1975.2,8.79896587]
[1746713345537,5.06252214,1975.3,1975.2,5.79896587]
[1746713346748,5.06329113,1975.0,1974.9,5.79896587]
[1746713347169,5.919,1975.3,1974.9,5.79896587]
[1746713347352,5.06318778,1975.1,1974.9,5.79896587]
[1746713348489,5.06318201,1975.1,1974.9,5.79896587]
[1746713348944,5.06315274,1975.1,1974.9,5.79896587]
[1746713349144,5.06329113,1975.0,1974.9,5.79896587]
[1746713349778,5.06329113,1975.0,1974.5,0.7585]
[1746713349779,5.06406036,1974.7,1974.6,5.79896587]
[1746713350688,5.0645733,1974.5,1974.4,5.79896587]
[1746713351048,5.06434228,1974.6,1974.4,5.79896587]
[1746713351385,5.92,1974.8,1974.4,5.79896587]
[1746713351688,10.98390814,1974.8,1974.7,5.79896587]
[1746713352692,10.98380392,1974.8,1974.7,5.79896587]
[1746713352879,10.98380392,1974.8,1974.2,1.5818705]
[1746713352880,5.06492878,1974.4,1974.2,1.5818705]
[1746713353048,5.06446583,1974.6,1974.5,5.79896587]
[1746713353247,5.06426247,1974.7,1974.5,5.79896587]
[1746713353450,5.06431682,1974.6,1974.5,5.79896587]
[1746713355461,5.06426247,1974.7,1974.5,5.79896587]
[1746713355666,5.06431682,1974.6,1974.5,5.79896587]
[1746713358255,5.06508635,1974.3,1974.2,0.4374439]
[1746713358549,10.89008635,1974.3,1974.2,0.4374439]
[1746713359346,11.71408635,1974.3,1974.2,0.4374439]
[1746713360978,11.71408635,1974.3,1974.2,0.55392172]
[1746713361187,11.71408635,1974.3,1974.2,0.4374439]
[1746713362587,10.89008635,1974.3,1974.2,6.23640977]
[1746713362756,10.89008635,1974.3,1974.2,6.35615376]
[1746713364811,5.06508635,1974.3,1974.2,6.35615376]
[1746713365709,5.06460804,1974.5,1974.2,6.23640977]
[1746713365913,5.06460804,1974.5,1974.3,3.0]
[1746713366292,6.6199,1974.7,1974.2,6.23640977]
[1746713366293,5.06482982,1974.4,1974.2,6.23640977]
[1746713366494,5.06508635,1974.3,1974.2,6.23640977]
[1746713366816,5.06508635,1974.3,1974.2,0.4374439]
[1746713366979,5.85118635,1974.3,1974.2,0.4374439]
[1746713369217,15.97118635,1974.3,1974.2,0.4374439]
[1746713369418,21.28418635,1974.3,1974.2,0.4374439]
[1746713370425,15.97118635,1974.3,1974.2,0.4374439]
[1746713371631,5.85118635,1974.3,1974.2,0.4374439]
[1746713371928,10.89145872,1974.6,1974.2,7.15305376]
[1746713372144,5.06478399,1974.5,1974.2,1.35408789]
[1746713372293,5.0645733,1974.5,1974.2,1.35408789]
[1746713373103,5.0649168,1974.4,1974.2,1.74034288]
[1746713373304,5.06499126,1974.4,1974.3,8.79896587]
[1746713373624,5.828,1974.7,1974.3,8.91880332]
[1746713373829,5.06482982,1974.4,1974.3,8.91880332]
[1746713374330,5.0646617,1974.5,1974.3,8.91880332]
[1746713374490,5.06482982,1974.4,1974.3,5.91880332]
[1746713374697,5.0646617,1974.5,1974.3,5.91880332]
[1746713374998,5.06482982,1974.4,1974.3,5.91880332]
[1746713375626,5.06481197,1974.5,1974.3,5.91880332]
[1746713375788,5.06447945,1974.6,1974.3,5.91880332]
[1746713375992,5.06447945,1974.6,1974.5,5.79896587]
[1746713376220,5.06431682,1974.6,1974.5,5.79896587]
[1746713376423,5.06431682,1974.6,1974.5,5.91775106]
[1746713376640,10.89222307,1974.7,1974.5,5.91775106]
[1746713376835,0.7806,1975.1,1974.5,8.91775106]
[1746713376836,5.06387624,1974.8,1974.5,8.91775106]
[1746713377043,5.06400919,1974.8,1974.5,8.91775106]
[1746713377226,5.06419454,1974.7,1974.5,8.91775106]
[1746713377811,5.06409967,1974.7,1974.5,8.91775106]
[1746713378010,5.06391082,1974.8,1974.5,8.91775106]
[1746713378525,10.89068004,1974.9,1974.5,13.98228856]
[1746713378727,5.06250761,1975.4,1974.9,8.06345247]
[1746713378939,10.8890898,1975.5,1975.3,5.79896587]
[1746713379431,10.8890898,1975.5,1975.4,0.11405267]
[1746713380146,5.06277845,1975.2,1975.1,3.0]
[1746713381145,5.06277845,1975.2,1975.1,3.1156297]
[1746713381850,5.06160493,1975.7,1975.1,4.08221926]
[1746713382141,5.06149719,1975.7,1975.6,5.79896587]
[1746713382545,5.06149719,1975.7,1975.6,5.91196746]
[1746713382784,5.06149719,1975.7,1975.6,5.79896587]
[1746713382959,5.06149719,1975.7,1975.6,5.91196746]
[1746713383113,5.06111932,1975.9,1975.6,5.91196746]
[1746713383314,5.06149719,1975.7,1975.6,5.91196746]
[1746713383512,5.06149719,1975.7,1975.6,0.11300159]
[1746713383823,5.06226587,1975.4,1975.3,5.79896587]
[1746713384039,5.06217634,1975.5,1975.3,5.79896587]
[1746713384240,5.06226587,1975.4,1975.3,5.79896587]
[1746713386233,5.06245302,1975.4,1974.7,6.04685731]
[1746713386577,5.06303478,1975.1,1975.0,8.79896587]
[1746713387253,5.06264783,1975.3,1975.1,0.8212]
[1746713387552,5.06286937,1975.2,1975.1,0.8212]
[1746713387752,5.06286937,1975.2,1975.1,3.8212]
[1746713387956,5.06098486,1975.9,1975.1,3.8212]
[1746713388124,5.0621068,1975.5,1975.3,8.79896587]
[1746713388323,5.0621068,1975.5,1975.4,5.79896587]
[1746713388525,5.0621068,1975.5,1975.4,8.79896587]
[1746713389657,5.0621068,1975.5,1975.4,5.79896587]
[1746713389959,10.8749052,1975.6,1975.4,8.79896587]
[1746713390381,5.813,1975.6,1975.4,8.79896587]
[1746713390683,10.87476906,1975.6,1975.4,8.79896587]
[1746713390871,5.06200961,1975.5,1975.4,8.79896587]
[1746713391250,10.87476906,1975.6,1975.4,8.79896587]
[1746713393283,10.87476906,1975.6,1975.5,0.7666]
[1746713393646,5.06160868,1975.7,1975.5,0.7666]
[1746713393850,5.06136414,1975.8,1975.5,3.7666]
[1746713394118,23.30386478,1976.0,1975.7,5.79896587]
[1746713394453,5.06086478,1976.0,1975.7,5.79896587]
[1746713394875,5.06099925,1975.9,1975.7,5.79896587]
[1746713395061,5.06086478,1976.0,1975.8,0.12985706]
[1746713395386,10.87356201,1976.1,1975.8,3.12985706]
[1746713395571,5.06031562,1976.2,1976.1,3.0]
[1746713395771,24.8453,1976.8,1976.1,3.0]
[1746713395973,5.05911166,1976.7,1976.5,0.7849]
[1746713396183,5.05893661,1976.7,1976.6,5.79896587]
[1746713396490,5.812,1977.2,1976.6,6.30959673]
[1746713396688,5.0579131,1977.1,1977.0,5.79896587]
[1746713396898,10.86971088,1977.2,1976.7,5.79896587]
[1746713396899,5.05868069,1976.8,1976.7,5.79896587]
[1746713398094,5.05844106,1976.9,1976.8,3.0]
[1746713398951,5.05868069,1976.8,1976.7,5.79896587]
[1746713400800,5.05868069,1976.8,1976.2,5.79896587]
[1746713400801,5.05996053,1976.3,1976.2,5.79896587]
[1746713401001,5.05996053,1976.3,1976.0,6.55386587]
[1746713401308,5.811,1976.4,1976.0,7.20925246]
[1746713401458,5.06047264,1976.1,1976.0,5.79896587]
[1746713402496,5.06124101,1975.8,1975.7,5.79896587]
[1746713402874,5.06044076,1976.2,1975.7,8.98803227]
[1746713403075,5.83000421,1976.3,1976.1,5.79896587]
[1746713403291,5.06047264,1976.1,1975.8,5.79896587]
[1746713403486,5.06098486,1975.9,1975.8,5.79896587]
[1746713405213,5.060886,1976.0,1975.8,5.79896587]
[1746713405440,5.811,1976.4,1975.9,3.0]
[1746713405723,5.05903808,1976.7,1976.3,13.85882489]
[1746713406020,5.05902924,1976.7,1976.6,5.79896587]
[1746713406180,5.05881245,1976.8,1976.6,5.79896587]
[1746713406377,5.05833121,1977.0,1976.7,3.0]
[1746713406616,5.05833121,1977.0,1976.9,5.79896587]
[1746713407124,5.05868069,1976.8,1976.7,3.0]
[1746713407630,5.05868069,1976.8,1976.6,5.79896587]
[1746713407631,5.05893661,1976.7,1976.6,5.79896587]
[1746713408132,5.05838073,1977.0,1976.6,5.79896587]
[1746713408288,5.811,1977.2,1976.9,6.57856587]
[1746713408484,5.05800532,1977.1,1976.9,6.57856587]
[1746713408718,5.05803519,1977.1,1976.9,6.57856587]
[1746713409021,5.05816894,1977.0,1976.9,5.79896587]
[1746713409234,5.05805526,1977.1,1976.9,5.79896587]
[1746713409447,5.05816894,1977.0,1976.9,5.79896587]
[1746713410131,5.05805526,1977.1,1976.9,5.79896587]
[1746713410343,10.86723733,1977.4,1977.0,5.0579909]
[1746713410555,10.86723733,1977.4,1977.2,6.55966587]
[1746713410733,5.05723733,1977.4,1977.3,3.0]
[1746713410903,5.809,1977.7,1977.3,3.0]
[1746713411105,5.809,1977.7,1977.6,3.0]
[1746713411308,3.37740567,1977.9,1977.7,0.8324]
[1746713411538,8.43347541,1977.9,1977.8,5.79896587]
[1746713413956,5.05637862,1977.7,1977.5,5.79896587]
[1746713414619,5.05616873,1977.8,1977.6,3.0]
[1746713414837,3.37740567,1977.9,1977.6,8.98693766]
[1746713415147,3.37740567,1977.9,1977.8,5.79896587]
[1746713415302,8.433273,1977.9,1977.8,5.79896587]
[1746713415724,3.37740567,1977.9,1977.8,5.79896587]
[1746713416445,8.433273,1977.9,1977.8,5.79896587]
[1746713417934,3.37740567,1977.9,1977.8,8.79896587]
[1746713418140,3.37740567,1977.9,1977.8,10.46156246]
[1746713418465,8.433273,1977.9,1977.8,9.58166587]
[1746713419034,8.433273,1977.9,1977.8,5.79896587]
[1746713419470,5.05637862,1977.7,1977.4,3.0]
[1746713419766,8.4332873,1977.9,1977.4,3.0]
[1746713419922,5.05673254,1977.6,1977.4,3.0]
[1746713420122,5.05689001,1977.5,1977.4,3.0]
[1746713420323,8.4332873,1977.9,1977.1,0.7903]
[1746713420533,5.05736417,1977.4,1977.1,0.7903]
[1746713420756,5.05736417,1977.4,1977.1,5.20620955]
[1746713421137,5.05704337,1977.5,1977.3,5.79896587]
[1746713421330,5.05714574,1977.4,1977.3,8.79896587]
[1746713421571,5.05765729,1977.2,1976.9,0.7994]
[1746713421725,5.80858962,1977.6,1976.8,0.37682659]
[1746713421726,5.0584248,1976.9,1976.8,0.37682659]
[1746713421927,5.05830849,1977.0,1976.7,3.0]
[1746713422126,5.05842683,1976.9,1976.7,3.98454438]
[1746713422358,5.05842683,1976.9,1976.7,3.0]
[1746713422762,5.05876623,1976.8,1976.6,6.59836587]
[1746713423063,5.05842683,1976.9,1976.6,6.59836587]
[1746713423365,5.05864165,1976.9,1976.6,6.59836587]